fUSD/lending_fUSD_20251130
["ID","MTS","AMOUNT","RATE_DAILY","PERIOD"]
[395153665,1764486646079,-200.0,0.00016864,2]
[395153666,1764486646092,-200.0,0.00016864,2]
[395153667,1764486646105,-150.0,0.00016873,2]
[395153668,1764486646118,-10000.0,0.00016899,2]
[395153669,1764486646131,-500.0,0.00016899,2]
[395153670,1764486646144,-11902.982583,0.000169,2]
[395153671,1764486646157,-201.41866534,0.000169,2]
[395153672,1764486646171,-390.47377755,0.000169,2]
[395153673,1764486646184,-150.0,0.00016901,2]
[395153674,1764486646197,-150.0,0.00016918,2]
[395153675,1764486646211,-1520.19807694,0.0001697,2]
[395153676,1764486646225,-500.0,0.00016973,2]
[395153677,1764486646238,-500.0,0.00016973,2]
[395153678,1764486646251,-500.0,0.00016973,2]
[395153679,1764486646264,-500.0,0.00016973,2]
[395153680,1764486646277,-167.3210545,0.00016973,2]
[395153681,1764486646290,-500.49965341,0.00016973,2]
[395153682,1764486646302,-500.838144,0.00016973,2]
[395153683,1764486646317,-176.66973248,0.00016973,2]
[395153684,1764486646329,-500.0,0.00016973,2]
[395153685,1764486646342,-366.95471126,0.00016973,2]
[395153686,1764486646356,-500.0,0.00016973,2]
[395153687,1764486646368,-502.42313954,0.00016973,2]
[395153688,1764486646381,-162.090508,0.00016973,2]
[395153689,1764486646394,-500.0,0.00016973,2]
[395153690,1764486646408,-500.38978168,0.00016973,2]
[395153691,1764486646421,-500.0,0.00016973,2]
[395153692,1764486646434,-500.0,0.00016973,2]
[395153693,1764486646447,-500.0,0.00016973,2]
[395153694,1764486646460,-507.2295556,0.00016973,2]
[395153695,1764486646474,-500.0,0.00016973,2]
[395153696,1764486646491,-500.0,0.00016973,2]
[395153697,1764486646504,-415.54250471,0.00016973,2]
[395153698,1764486646516,-500.0,0.00016973,2]
[395153699,1764486646529,-500.0,0.00016973,2]
[395153700,1764486646542,-500.0,0.00016973,2]
[395153701,1764486646554,-500.0,0.00016973,2]
[395153702,1764486646566,-500.0,0.00016973,2]
[395153703,1764486646579,-500.0,0.00016973,2]
[395153704,1764486646591,-500.0,0.00016973,2]
[395153705,1764486646604,-281.71884417,0.00016973,2]
[395153707,1764486646616,-500.0,0.00016973,2]
[395153708,1764486646629,-500.0,0.00016973,2]
[395153709,1764486646641,-500.0,0.00016973,2]
[395153710,1764486646654,-500.0,0.00016973,2]
[395153711,1764486646667,-500.0,0.00016973,2]
[395153712,1764486646679,-500.0,0.00016973,2]
[395153713,1764486646692,-187.03419553,0.00016973,2]
[395153714,1764486646705,-500.0,0.00016973,2]
[395153715,1764486646718,-200.16875991,0.00016983,2]
[395153716,1764486646731,-500.0,0.00016983,2]
[395153717,1764486646744,-500.0,0.00016986,2]
[395153718,1764486646756,-1347.0,0.00016986,2]
[395153719,1764486646768,-204.30018079,0.00016986,2]
[395153720,1764486646781,-165.6418434,0.00016986,2]
[395153721,1764486646793,-150.10346577,0.00016986,2]
[395153722,1764486646806,-168.80232589,0.00016986,2]
[395153723,1764486646818,-239.89101121,0.00016986,2]
[395153724,1764486646831,-174.32201145,0.00016986,2]
[395153725,1764486646844,-151.57196874,0.00016986,2]
[395153726,1764486646856,-155.69497856,0.00016986,2]
[395153727,1764486646869,-151.4044182,0.00016986,2]
[395153728,1764486646882,-152.10525802,0.00016986,2]
[395153729,1764486646898,-152.51466941,0.00016986,2]
[395153730,1764486646911,-222.23133542,0.0001699,2]
[395153731,1764486646928,-151.0,0.00016997,2]
[395153732,1764486646943,-519.32805224,0.00016999,2]
[395153733,1764486646956,-458.00390684,0.00016999,2]
[395153734,1764486646968,-300.0,0.00016999,2]
[395153735,1764486646981,-500.0,0.00016999,2]
[395153736,1764486646994,-500.0,0.00016999,2]
[395153737,1764486647007,-500.0,0.00016999,2]
[395153738,1764486647019,-509.39630906,0.00016999,2]
[395153739,1764486647031,-500.0,0.00016999,2]
[395153740,1764486647043,-500.0,0.00016999,2]
[395153741,1764486647055,-562.09588733,0.00016999,2]
[395153742,1764486647068,-500.0,0.00016999,2]
[395153743,1764486647080,-500.0,0.00016999,2]
[395153744,1764486647092,-500.0,0.00016999,2]
[395153745,1764486647104,-349.68798238,0.00016999,2]
[395153746,1764486647116,-300.0,0.00016999,2]
[395153747,1764486647128,-300.0,0.00016999,2]
[395153749,1764486647140,-500.0,0.00016999,2]
[395153751,1764486647153,-500.0,0.00016999,2]
[395153753,1764486647164,-500.0,0.00016999,2]
[395153754,1764486647176,-500.0,0.00016999,2]
[395153755,1764486647188,-500.0,0.00016999,2]
[395153756,1764486647200,-500.0,0.00016999,2]
[395153757,1764486647212,-500.0,0.00016999,2]
[395153758,1764486647224,-500.0,0.00016999,2]
[395153759,1764486647236,-500.0,0.00016999,2]
[395153760,1764486647247,-500.0,0.00016999,2]
[395153761,1764486647259,-500.0,0.00016999,2]
[395153762,1764486647271,-500.0,0.00016999,2]
[395153763,1764486647283,-500.0,0.00016999,2]
[395153764,1764486647295,-500.0,0.00016999,2]
[395153765,1764486647307,-500.0,0.00016999,2]
[395153766,1764486647318,-500.0,0.00016999,2]
[395153767,1764486647329,-191.9483848,0.00016999,2]
[395153768,1764486647340,-300.0,0.00016999,2]
[395153769,1764486647352,-1086725.5577399,0.00017,2]
[395153770,1764486647363,-4940829.3535568,0.00017,2]
[395153771,1764486649254,-463119.84639932,0.00017,2]
[395153772,1764486649265,-9888.6427626,0.00017,2]
[395153773,1764486649279,-7359.72733283,0.00017,2]
[395153774,1764486649299,-224.90084816,0.00016049,2]
[395153775,1764486649308,-3066.13628934,0.00017,2]
[395153776,1764486649521,-921.37103441,0.000159,2]
[395153777,1764486649530,-9739.67030319,0.00017,2]
[395153778,1764486649812,-962.64008,0.00017,2]
[395153801,1764486812247,233.41,6.372e-05,2]
[395153802,1764486812441,196.72865341,6.707e-05,2]
[395153803,1764486812500,36.68134659,6.707e-05,2]
[395153804,1764486812863,233.41,7.043e-05,2]
[395153805,1764486813090,233.41,7.378e-05,2]
[395153806,1764486813292,233.41,7.713e-05,2]
[395153807,1764486813924,233.41,8.049e-05,2]
[395153808,1764486814027,233.41,8.384e-05,2]
[395153809,1764486814157,233.41,8.72e-05,2]
[395153810,1764486814288,233.41,9.055e-05,2]
[395153811,1764486814483,233.41,9.39e-05,2]
[395153812,1764486814901,233.41,9.726e-05,2]
[395153813,1764486815104,233.41,0.00010061,2]
[395153814,1764486815314,233.41,0.00010396,2]
[395153815,1764486815522,233.41,0.00010732,2]
[395153816,1764486815731,233.41,0.00011067,2]
[395153817,1764486815912,233.41,0.00011403,2]
[395153818,1764486816101,233.41,0.00011738,2]
[395153819,1764486816288,233.41,0.00012073,2]
[395153820,1764486816482,233.41,0.00012409,2]
[395153821,1764486816689,233.41,0.00012744,2]
[395153823,1764486821102,150.0,8.1e-05,2]
[395153875,1764487124981,1000.0,0.00012744,2]
[395153879,1764487171795,4611.94865341,0.00013103,2]
[395153880,1764487171854,8346.49180415,0.00013103,2]
[395153885,1764487230948,250.0,0.00012744,2]
[395153899,1764487373342,2500.0,0.000131,2]
[395153900,1764487403525,156.0,0.000131,2]
[395153901,1764487404378,156.0,0.000131,2]
[395153916,1764487541478,2500.0,0.000131,2]
[395153921,1764487552415,200.0,0.00013057,2]
[395153933,1764487567135,157.91,0.000131,2]
[395153957,1764487679205,4080.1,0.000131,2]
[395153958,1764487679272,10000.01,0.000131,2]
[395153959,1764487679342,10000.01,0.000131,2]
[395153960,1764487679409,10000.01,0.000131,2]
[395153961,1764487679477,10000.01,0.000131,2]
[395153962,1764487679547,10000.01,0.000131,2]
[395153963,1764487679612,10000.01,0.000131,2]
[395153964,1764487679681,10000.01,0.000131,2]
[395153965,1764487679748,10000.01,0.000131,2]
[395153966,1764487679814,10000.01,0.000131,2]
[395153967,1764487683893,-300.0,0.00013099,2]
[395153968,1764487683920,-578.61735467,0.000131,2]
[395153970,1764487686642,-215.92294338,0.000131,2]
[395153971,1764487688221,-289.2812312,0.000131,2]
[395153972,1764487692684,-558.19147057,0.000131,2]
[395153973,1764487695339,-181.39330656,0.000131,2]
[395153974,1764487696618,-260.19658991,0.000131,2]
[395153975,1764487699239,-296.55391083,0.000131,2]
[395153977,1764487704312,-300.0,0.000131,2]
[395153978,1764487705203,-3702.56611612,0.000131,2]
[395153979,1764487705367,-10000.01,0.000131,2]
[395153980,1764487705619,-599.27184086,0.00013098,2]
[395153981,1764487705744,-8801.46631828,0.000131,2]
[395153982,1764487705954,-451.5997428,0.000131,2]
[395153983,1764487708610,-10000.01,0.000131,2]
[395153984,1764487708790,-10000.01,0.000131,2]
[395153985,1764487708991,-10000.01,0.000131,2]
[395153986,1764487709189,-10000.01,0.000131,2]
[395153987,1764487709410,-10000.01,0.000131,2]
[395153988,1764487709757,-10000.01,0.000131,2]
[395153989,1764487710008,-10000.01,0.000131,2]
[395153990,1764487710181,-500.0,0.000131,2]
[395153991,1764487711829,-307.76491571,0.000131,2]
[395153992,1764487715892,-200.7170109,0.000131,2]
[395153993,1764487716052,-10000.01,0.000131,2]
[395153994,1764487716111,-10000.01,0.000131,2]
[395153995,1764487718219,-230.28853211,0.000131,2]
[395153996,1764487720342,-302.0,0.000131,2]
[395153997,1764487721958,-254.69291239,0.000131,2]
[395153998,1764487724552,-10000.01,0.000131,2]
[395153999,1764487725000,-462.94618541,0.00013099,2]
[395154000,1764487725066,-249.54801596,0.000131,2]
[395154001,1764487725209,-9074.11762918,0.000131,2]
[395154002,1764487725279,-10000.01,0.000131,2]
[395154003,1764487725373,-10000.01,0.000131,2]
[395154004,1764487727864,-500.0,0.00013099,2]
[395154005,1764487727874,-500.0,0.00013099,2]
[395154006,1764487727884,-500.0,0.00013099,2]
[395154007,1764487727895,-500.0,0.00013099,2]
[395154008,1764487727904,-500.0,0.00013099,2]
[395154009,1764487727914,-500.0,0.00013099,2]
[395154010,1764487727923,-500.0,0.00013099,2]
[395154011,1764487727933,-500.0,0.00013099,2]
[395154012,1764487727943,-500.0,0.00013099,2]
[395154013,1764487727952,-500.0,0.00013099,2]
[395154014,1764487727962,-500.0,0.00013099,2]
[395154015,1764487727972,-500.0,0.00013099,2]
[395154016,1764487727981,-369.45257986,0.00013099,2]
[395154017,1764487727991,-500.0,0.00013099,2]
[395154018,1764487728001,-3130.55742014,0.000131,2]
[395154019,1764487728174,-500.0,0.00013099,2]
[395154020,1764487728205,-48.96763811,0.00013099,2]
[395154021,1764487729829,-293.43049039,0.00013099,2]
[395154023,1764487730706,-157.6018715,0.00013099,2]
[395154024,1764487730777,-500.0,0.00013099,2]
[395154025,1764487730854,-500.0,0.00013099,2]
[395154026,1764487730925,-500.0,0.00013099,2]
[395154027,1764487730999,-500.0,0.00013099,2]
[395154028,1764487731082,-500.0,0.00013099,2]
[395154029,1764487731506,-4684.806257,0.000131,2]
[395154030,1764487731581,-10000.01,0.000131,2]
[395154031,1764487731641,-10000.01,0.000131,2]
[395154032,1764487732250,-238.36710413,0.000131,2]
[395154033,1764487734841,-500.0,0.000131,2]
[395154034,1764487738382,-303.9355801,0.000131,2]
[395154035,1764487739839,-408.38485125,0.000131,2]
[395154036,1764487741267,-500.0,0.00013099,2]
[395154037,1764487741334,-500.0,0.00013099,2]
[395154038,1764487741403,-500.0,0.00013099,2]
[395154039,1764487741468,-500.0,0.00013099,2]
[395154040,1764487741530,-500.0,0.00013099,2]
[395154041,1764487741593,-500.0,0.00013099,2]
[395154042,1764487741659,-500.0,0.00013099,2]
[395154043,1764487741728,-500.0,0.00013099,2]
[395154044,1764487741793,-500.0,0.00013099,2]
[395154045,1764487741866,-500.0,0.00013099,2]
[395154046,1764487742056,-280.44853211,0.00013099,2]
[395154047,1764487742552,-0.01,0.00013099,2]
[395154048,1764487742622,-219.54146789,0.00013099,2]
[395154049,1764487742691,-500.0,0.00013099,2]
[395154050,1764487742760,-500.0,0.00013099,2]
[395154051,1764487742829,-500.0,0.00013099,2]
[395154052,1764487742903,-500.0,0.00013099,2]
[395154053,1764487742978,-500.0,0.00013099,2]
[395154054,1764487743046,-500.0,0.00013099,2]
[395154055,1764487743544,-3560.92706422,0.000131,2]
[395154056,1764487743595,-10000.01,0.000131,2]
[395154057,1764487743656,-10000.01,0.000131,2]
[395154058,1764487743721,-10000.01,0.000131,2]
[395154059,1764487743770,-10000.01,0.000131,2]
[395154060,1764487743860,-10000.01,0.000131,2]
[395154061,1764487743919,-10000.01,0.000131,2]
[395154062,1764487743970,-10000.01,0.000131,2]
[395154063,1764487744039,-10000.01,0.000131,2]
[395154064,1764487744152,-10000.01,0.000131,2]
[395154065,1764487744332,-10000.01,0.000131,2]
[395154066,1764487744538,-166.27919891,0.000131,2]
[395154067,1764487744840,-10000.01,0.000131,2]
[395154068,1764487745041,-10000.01,0.000131,2]
[395154069,1764487745247,-10000.01,0.000131,2]
[395154070,1764487747624,-393.53387593,0.000131,2]
[395154116,1764487750045,-391.0781462,0.000131,2]
[395154160,1764487751852,-410.77630252,0.000131,2]
[395154161,1764487754006,-198.8917248,0.000131,2]
[395154173,1764487756778,-198.57145067,0.000131,2]
[395154175,1764487759393,-500.0,0.000131,2]
[395154176,1764487762731,-350.0,0.000131,2]
[395154177,1764487764192,-272.96386,0.000131,2]
[395154178,1764487766283,-300.0,0.000131,2]
[395154184,1764487769218,-667.93750912,0.000131,2]
[395154199,1764487775245,-163.73263199,0.000131,2]
[395154200,1764487776718,-300.0,0.000131,2]
[395154201,1764487779839,-212.0,0.000131,2]
[395154202,1764487782799,-385.59247409,0.000131,2]
[395154203,1764487784952,-181.15641038,0.000131,2]
[395154204,1764487788248,-349.68414304,0.000131,2]
[395154205,1764487790942,-239.84461896,0.000131,2]
[395154206,1764487792562,-228.56036305,0.000131,2]
[395154207,1764487796703,-269.71146789,0.000131,2]
[395154208,1764487797936,-198.18696423,0.000131,2]
[395154209,1764487799461,-221.97219332,0.000131,2]
[395154210,1764487801937,-300.0,0.00013099,2]
[395154211,1764487801966,-103.50816133,0.00013099,2]
[395154212,1764487804542,-155.51444591,0.00013099,2]
[395154213,1764487807747,-180.12476308,0.00013099,2]
[395154214,1764487809100,-181.39330656,0.00013098,2]
[395154215,1764487812780,-182.9108029,0.00013098,2]
[395154216,1764487814805,-135.69589054,0.00013098,2]
[395154217,1764487814830,-96.40250414,0.00013099,2]
[395154220,1764487819493,-159.9155177,0.00013099,2]
[395154226,1764487822277,-187.42409288,0.00013099,2]
[395154227,1764487823870,-177.90352714,0.00013099,2]
[395154228,1764487826511,-139.20698782,0.00013099,2]
[395154229,1764487826547,-55.79301218,0.00013099,2]
[395154230,1764487828963,-213.31346868,0.00013099,2]
[395154259,1764487831761,-30.89351914,0.00013099,2]
[395154260,1764487831775,-150.0,0.00013099,2]
[395154261,1764487831785,-240.22427682,0.00013099,2]
[395154262,1764487831795,-500.0,0.00013099,2]
[395154263,1764487831805,-500.0,0.00013099,2]
[395154264,1764487831817,-78.88220404,0.00013099,2]
[395154278,1764487832142,-341.26436306,0.00013099,2]
[395154279,1764487834290,-79.8534329,0.00013099,2]
[395154280,1764487834318,-405.87713745,0.00013099,2]
[395154281,1764487836762,-94.12286255,0.00013099,2]
[395154282,1764487836791,-216.04780204,0.00013099,2]
[395154286,1764487837872,-283.95219796,0.00013099,2]
[395154287,1764487837882,-276.22240913,0.00013099,2]
[395154288,1764487837891,-500.0,0.00013099,2]
[395154289,1764487837902,-197.54429115,0.00013099,2]
[395154290,1764487837912,-339737.16038749,0.000131,2]
[395154291,1764487837921,-2949.634,0.000131,2]
[395154292,1764487837931,-11042.9698,0.000131,2]
[395154293,1764487837940,-2500.0,0.000131,2]
[395154294,1764487837950,-152.1713653,0.000131,2]
[395154295,1764487837960,-1659.2806237,0.000131,2]
[395154296,1764487837969,-152.54165364,0.000131,2]
[395154297,1764487837978,-231.47564842,0.000131,2]
[395154298,1764487837987,-200.0,0.000131,2]
[395154299,1764487837997,-33399.3792,0.000131,2]
[395154300,1764487838006,-250.0,0.00013198,2]
[395154301,1764487838016,-250.0,0.00013199,2]
[395154302,1764487838026,-254672.3157507,0.000132,2]
[395154303,1764487838036,-200.0,0.00013231,2]
[395154304,1764487838046,-11662.59641184,0.00013273,2]
[395154305,1764487838056,-219.85696359,0.00013306,2]
[395154306,1764487838068,-200.0,0.00013363,2]
[395154307,1764487838078,-19643.88,0.00013405,2]
[395154308,1764487838088,-844.65441672,0.00013406,2]
[395154309,1764487838098,-1128.5220205,0.00013472,3]
[395154310,1764487838107,-999.99,0.00013472,2]
[395154311,1764487838117,-150.99,0.00013473,2]
[395154312,1764487838127,-19434.36,0.00013473,2]
[395154313,1764487838138,-9999.99,0.00013473,2]
[395154314,1764487838147,-9999.99,0.00013473,2]
[395154315,1764487838157,-299.99,0.00013473,2]
[395154316,1764487838168,-200.0,0.00013497,2]
[395154317,1764487838178,-1000.0,0.00013506,2]
[395154318,1764487838187,-108273.61,0.00013594,2]
[395154319,1764487838197,-157.0,0.000136,2]
[395154320,1764487838208,-200.0,0.00013632,2]
[395154321,1764487838217,-599.27184084,0.00013641,2]
[395154322,1764487838227,-11662.59641178,0.00013676,2]
[395154323,1764487838237,-500.0,0.00013698,2]
[395154324,1764487838246,-500.0,0.00013698,2]
[395154325,1764487838256,-500.0,0.00013698,2]
[395154326,1764487838269,-500.0,0.00013698,2]
[395154327,1764487838279,-500.0,0.00013698,2]
[395154328,1764487838288,-509.31705516,0.00013698,2]
[395154329,1764487838297,-500.0,0.00013698,2]
[395154331,1764487838307,-500.0,0.00013698,2]
[395154333,1764487838319,-500.0,0.00013698,2]
[395154334,1764487838328,-500.0,0.00013698,2]
[395154335,1764487838337,-500.0,0.00013698,2]
[395154336,1764487838347,-500.0,0.00013698,2]
[395154337,1764487838356,-500.0,0.00013698,2]
[395154338,1764487838366,-500.0,0.00013698,2]
[395154339,1764487838375,-500.0,0.00013698,2]
[395154340,1764487838387,-500.0,0.00013698,2]
[395154341,1764487838398,-200.0,0.00013699,2]
[395154343,1764487838408,-953.36,0.00013699,2]
[395154344,1764487838418,-699.2,0.00013699,2]
[395154345,1764487838427,-166.66,0.0001375,2]
[395154346,1764487838437,-11662.59641178,0.00014079,2]
[395154347,1764487838446,-599.27184084,0.00014184,2]
[395154348,1764487838455,-166.66,0.00014204,2]
[395154349,1764487838467,-255.0,0.00014212,2]
[395154350,1764487838480,-1000.0,0.00014337,2]
[395154351,1764487838492,-420.0,0.00014364,2]
[395154352,1764487838503,-420.0,0.00014364,2]
[395154353,1764487838513,-195.0,0.00014409,2]
[395154354,1764487838523,-281.90988596,0.00014409,2]
[395154355,1764487838533,-300.0,0.00014409,2]
[395154356,1764487838542,-300.0,0.00014409,2]
[395154357,1764487838551,-150.39058857,0.00014409,2]
[395154358,1764487838561,-1680.0,0.00014409,2]
[395154359,1764487838571,-195.0,0.0001441,2]
[395154360,1764487838580,-11662.59641178,0.00014482,2]
[395154361,1764487838590,-195.0,0.00014518,2]
[395154362,1764487838599,-195.0,0.00014518,2]
[395154363,1764487838609,-250.0,0.00014518,2]
[395154364,1764487838619,-26370.51470969,0.000146,2]
[395154365,1764487838628,-166.66,0.00014658,2]
[395154366,1764487838638,-599.27184084,0.00014727,2]
[395154367,1764487838647,-7689.12,0.00014753,2]
[395154368,1764487838656,-11662.59641178,0.00014885,2]
[395154369,1764487838666,-225.29829185,0.000149,2]
[395154370,1764487838675,-151.0,0.00014997,2]
[395154371,1764487838684,-1358.9209654,0.00015,2]
[395154372,1764487838694,-272060.15053489,0.00015,4]
[395154373,1764487838704,-12037.00064594,0.00015,2]
[395154374,1764487838713,-219.85696359,0.00015012,2]
[395154375,1764487838723,-166.66,0.00015112,2]
[395154376,1764487838733,-298.83,0.00015156,2]
[395154377,1764487838742,-599.27184084,0.00015271,2]
[395154378,1764487838752,-246.57118594,0.00015278,2]
[395154379,1764487838761,-11662.59641178,0.00015288,2]
[395154380,1764487838772,-705.05,0.000153,2]
[395154381,1764487838782,-433.0,0.00015418,2]
[395154382,1764487838792,-1250.0,0.00015495,2]
[395154383,1764487838805,-1250.0,0.00015495,2]
[395154384,1764487838814,-151.0,0.00015495,2]
[395154385,1764487838824,-1250.0,0.00015495,2]
[395154386,1764487838833,-151.0,0.00015495,2]
[395154387,1764487838843,-1250.0,0.00015495,2]
[395154388,1764487838854,-1250.0,0.00015495,2]
[395154389,1764487838874,-151.0,0.00015495,2]
[395154390,1764487838886,-1250.0,0.00015495,2]
[395154391,1764487838898,-166.66,0.00015566,2]
[395154392,1764487838908,-11662.59641178,0.00015691,2]
[395154393,1764487838918,-207.90761755,0.00015727,2]
[395154394,1764487838928,-587.0,0.00015751,2]
[395154395,1764487838938,-587.0,0.00015751,2]
[395154396,1764487838948,-331.92191017,0.00015754,2]
[395154397,1764487838958,-599.27184084,0.00015814,2]
[395154398,1764487838968,-2351.0,0.0001585,2]
[395154399,1764487838978,-2436.46455868,0.000159,2]
[395154400,1764487838988,-1000.0,0.0001593,2]
[395154401,1764487838998,-154.88664675,0.00015973,2]
[395154402,1764487839008,-500.0,0.00015973,2]
[395154403,1764487839018,-500.0,0.00015973,2]
[395154404,1764487839029,-500.0,0.00015973,2]
[395154405,1764487839039,-500.0,0.00015973,2]
[395154406,1764487839049,-500.65013658,0.00015973,2]
[395154407,1764487839060,-500.0,0.00015973,2]
[395154408,1764487839070,-500.0,0.00015973,2]
[395154409,1764487839080,-503.30230408,0.00015973,2]
[395154410,1764487839090,-500.0,0.00015973,2]
[395154411,1764487839101,-176.19485435,0.00015973,2]
[395154412,1764487839111,-500.0,0.00015973,2]
[395154413,1764487839120,-165.08638781,0.00015973,2]
[395154414,1764487839130,-500.0,0.00015973,2]
[395154415,1764487839140,-160.07187961,0.00015973,2]
[395154416,1764487839150,-500.0,0.00015973,2]
[395154417,1764487839159,-500.0,0.00015973,2]
[395154418,1764487839170,-500.0,0.00015973,2]
[395154419,1764487839180,-500.0,0.00015973,2]
[395154420,1764487839191,-500.0,0.00015973,2]
[395154421,1764487839201,-201.11548058,0.00015973,2]
[395154422,1764487839211,-215.69681959,0.00015973,2]
[395154423,1764487839221,-160.04783372,0.00015973,2]
[395154424,1764487839231,-298.83,0.00015998,2]
[395154425,1764487839241,-319.26681909,0.00016,2]
[395154426,1764487839251,-23666.07387272,0.00016,2]
[395154427,1764487839261,-80242.06015155,0.00016,2]
[395154428,1764487839270,-212073.56098378,0.00016,4]
[395154429,1764487839280,-166.66,0.0001602,2]
[395154430,1764487839290,-11662.59641178,0.00016094,2]
[395154431,1764487839299,-709.05,0.00016149,2]
[395154432,1764487839309,-151.0,0.00016149,2]
[395154433,1764487839319,-533.88981491,0.00016149,2]
[395154434,1764487839329,-8000.0,0.00016149,2]
[395154435,1764487839339,-151.8981321,0.00016149,2]
[395154436,1764487839348,-8000.0,0.00016149,2]
[395154437,1764487839358,-8000.0,0.00016149,2]
[395154438,1764487839367,-8000.0,0.00016149,2]
[395154439,1764487839379,-7472.61466531,0.00016149,2]
[395154440,1764487839388,-1000.0,0.00016149,2]
[395154441,1764487839399,-250.0,0.00016149,2]
[395154442,1764487839410,-1000.0,0.00016149,2]
[395154443,1764487839421,-163.27944846,0.00016149,2]
[395154444,1764487839430,-250.0,0.00016149,2]
[395154445,1764487839440,-578.20924308,0.00016149,2]
[395154446,1764487839450,-1000.0,0.00016149,2]
[395154447,1764487839459,-250.0,0.00016149,2]
[395154448,1764487839469,-1000.0,0.00016149,2]
[395154449,1764487839480,-250.0,0.00016149,2]
[395154450,1764487839490,-1000.0,0.00016149,2]
[395154451,1764487839499,-250.0,0.00016149,2]
[395154452,1764487839509,-1000.0,0.00016149,2]
[395154453,1764487839519,-250.0,0.00016149,2]
[395154454,1764487839528,-1000.0,0.00016149,2]
[395154455,1764487839537,-250.0,0.00016149,2]
[395154456,1764487839548,-1000.0,0.00016149,2]
[395154457,1764487839558,-349.97444739,0.00016149,2]
[395154458,1764487839568,-1000.0,0.00016149,2]
[395154459,1764487839577,-1000.0,0.00016149,2]
[395154460,1764487839587,-1000.0,0.00016149,2]
[395154461,1764487839599,-1000.0,0.00016149,2]
[395154462,1764487839610,-1000.0,0.00016149,2]
[395154463,1764487839620,-500.0,0.00016149,2]
[395154464,1764487839630,-500.0,0.00016149,2]
[395154465,1764487839639,-500.0,0.00016149,2]
[395154466,1764487839648,-500.0,0.00016149,2]
[395154467,1764487839658,-500.0,0.00016149,2]
[395154468,1764487839668,-500.0,0.00016149,2]
[395154469,1764487839680,-500.0,0.00016149,2]
[395154470,1764487839690,-500.0,0.00016149,2]
[395154471,1764487839701,-500.0,0.00016149,2]
[395154472,1764487839711,-500.0,0.00016149,2]
[395154473,1764487839720,-500.0,0.00016149,2]
[395154474,1764487839730,-500.0,0.00016149,2]
[395154475,1764487839739,-151.0,0.00016149,2]
[395154476,1764487839748,-500.0,0.00016149,2]
[395154477,1764487839758,-500.0,0.00016149,2]
[395154478,1764487839768,-151.0,0.00016149,2]
[395154479,1764487839778,-500.0,0.00016149,2]
[395154480,1764487839788,-151.0,0.00016149,2]
[395154481,1764487839798,-500.0,0.00016149,2]
[395154482,1764487839809,-151.0,0.00016149,2]
[395154483,1764487839819,-1000.0,0.00016149,2]
[395154484,1764487839830,-500.0,0.00016149,2]
[395154485,1764487839839,-151.0,0.00016149,2]
[395154486,1764487839849,-1000.0,0.00016149,2]
[395154487,1764487839858,-500.0,0.00016149,2]
[395154488,1764487839867,-151.0,0.00016149,2]
[395154489,1764487839876,-1000.0,0.00016149,2]
[395154490,1764487839886,-151.0,0.00016149,2]